[Event "Chess Festival Groningen 2023 | A"]
[Site "Groningen, Netherlands"]
[Date "2023.12.24"]
[Round "4.28"]
[White "Francs, Marats"]
[Black "Jacobs, Florian"]
[Result "0-1"]
[TimeControl "90min/40moves + 30min + 30sec/move"]
[WhiteElo "1990"]
[BlackElo "2218"]

1. e4 {[%clk 01:30:29]} {[%emt 00:00:41]} e5 {[%clk 01:30:49]} {[%emt
00:00:03]} 2. Nf3 {[%clk 01:30:52]} {[%emt 00:00:05]} Nc6 {[%clk 01:31:13]}
{[%emt 00:00:40]} 3. Bb5 {[%clk 01:30:37]} {[%emt 00:00:13]} a6 {[%clk
01:31:36]} {[%emt 00:00:10]} 4. Ba4 {[%clk 01:31:02]} {[%emt 00:00:09]} Nf6
{[%clk 01:32:00]} 5. O-O {[%clk 01:31:12]} {[%emt 00:00:23]} Be7 {[%clk
01:32:22]} {[%emt 00:00:04]} 6. d3 {[%clk 01:30:51]} {[%emt 00:00:49]} b5
{[%clk 01:32:41]} {[%emt 00:00:23]} 7. Bb3 {[%clk 01:31:17]} d6 {[%clk
01:33:03]} 8. c3 {[%clk 01:31:04]} {[%emt 00:00:52]} Na5 {[%clk 01:32:26]}
{[%emt 00:00:58]} 9. Bc2 {[%clk 01:31:18]} {[%emt 00:00:15]} c5 {[%clk
01:32:49]} {[%emt 00:00:34]} 10. d4 {[%clk 01:26:31]} {[%emt 00:04:51]} Nd7
{[%clk 01:32:32]} {[%emt 00:00:46]} 11. d5 {[%clk 01:17:30]} {[%emt 00:09:32]}
Nb6 {[%clk 01:32:21]} {[%emt 00:00:44]} 12. Nbd2 {[%clk 01:13:41]} {[%emt
00:04:18]} O-O {[%clk 01:31:39]} {[%emt 00:01:13]} 13. b4 {[%clk 01:03:40]}
{[%emt 00:10:27]} Nb7 {[%clk 01:25:44]} {[%emt 00:06:24]} 14. Qe2 {[%clk
00:57:59]} {[%emt 00:06:12]} a5 {[%clk 01:17:18]} {[%emt 00:09:17]} 15. bxc5
{[%clk 00:55:30]} {[%emt 00:02:39]} Nxc5 {[%clk 01:16:49]} {[%emt 00:00:58]} 16.
Nb3 {[%clk 00:53:52]} {[%emt 00:02:08]} Nca4 {[%clk 01:13:57]} {[%emt
00:03:25]} 17. Bd2 {[%clk 00:54:09]} {[%emt 00:00:10]} Nc4 {[%clk 01:11:46]}
{[%emt 00:02:48]} 18. Bd3 {[%clk 00:54:13]} {[%emt 00:00:29]} Nab2 {[%clk
01:10:41]} {[%emt 00:01:28]} 19. Bc1 {[%clk 00:51:18]} {[%emt 00:03:22]} Nxd3
{[%clk 01:10:30]} {[%emt 00:00:40]} 20. Qxd3 {[%clk 00:51:45]} {[%emt
00:00:29]} Ba6 {[%clk 01:06:16]} {[%emt 00:04:18]} 21. Nbd2 {[%clk 00:51:49]}
{[%emt 00:00:28]} Nb6 {[%clk 01:03:13]} {[%emt 00:03:31]} 22. Bb2 {[%clk
00:42:23]} {[%emt 00:09:55]} Qd7 {[%clk 00:56:41]} {[%emt 00:07:12]} 23. Rac1
{[%clk 00:42:20]} {[%emt 00:00:22]} Rfc8 {[%clk 00:56:37]} {[%emt 00:00:35]} 24.
Qe3 {[%clk 00:38:12]} {[%emt 00:04:45]} Na4 {[%clk 00:56:04]} {[%emt 00:00:55]}
25. Ba1 {[%clk 00:38:27]} {[%emt 00:00:44]} Bd8 {[%clk 00:50:11]} {[%emt
00:05:57]} 26. Rc2 {[%clk 00:38:20]} {[%emt 00:00:43]} Bb6 {[%clk 00:48:43]}
{[%emt 00:01:55]} 27. Qg5 {[%clk 00:38:28]} {[%emt 00:00:18]} h6 {[%clk
00:48:09]} {[%emt 00:01:05]} 28. Qg3 {[%clk 00:38:45]} {[%emt 00:00:11]} f5
{[%clk 00:38:30]} {[%emt 00:10:11]} 29. Qg6 {[%clk 00:34:36]} {[%emt 00:04:37]}
Rf8 {[%clk 00:35:58]} {[%emt 00:03:08]} 30. c4 {[%clk 00:29:06]} {[%emt
00:05:53]} Rf6 {[%clk 00:33:02]} {[%emt 00:03:39]} 31. Qg3 {[%clk 00:27:13]}
{[%emt 00:02:11]} Nc5 {[%clk 00:27:54]} {[%emt 00:05:38]} 32. Rfc1 {[%clk
00:22:06]} {[%emt 00:05:36]} fxe4 {[%clk 00:15:16]} {[%emt 00:13:07]} 33. cxb5
{[%clk 00:19:13]} {[%emt 00:03:23]} exf3 {[%clk 00:09:28]} {[%emt 00:06:18]} 34.
Rxc5 {[%clk 00:17:58]} {[%emt 00:01:44]} Bxc5 {[%clk 00:08:49]} {[%emt
00:01:13]} 35. Ne4 {[%clk 00:18:22]} {[%emt 00:00:08]} Rf4 {[%clk 00:07:54]}
{[%emt 00:01:20]} 36. Nxc5 {[%clk 00:18:04]} {[%emt 00:00:55]} dxc5 {[%clk
00:08:17]} {[%emt 00:00:03]} 37. bxa6 {[%clk 00:17:33]} {[%emt 00:01:09]} Qxd5
{[%clk 00:07:05]} {[%emt 00:01:30]} 38. Qh3 {[%clk 00:16:35]} {[%emt 00:01:32]}
Rd8 {[%clk 00:06:03]} {[%emt 00:01:30]} 39. gxf3 {[%clk 00:16:37]} {[%emt
00:00:27]} Rxf3 {[%clk 00:04:51]} {[%emt 00:01:51]} 40. Qg2 {[%clk 00:16:33]}
{[%emt 00:00:27]} Qd1+ {[%clk 00:04:20]} {[%emt 00:00:59]} 41. Qf1 {[%clk
00:16:32]} {[%emt 00:00:43]} Qxf1+ {[%clk 00:04:06]} {[%emt 00:00:40]} 42. Kxf1
{[%clk 00:17:01]} {[%emt 00:00:04]} Rf6 {[%clk 00:01:07]} {[%emt 00:03:18]} 43.
Bxe5 {[%clk 00:16:58]} {[%emt 00:00:45]} Rxa6 {[%clk 00:01:29]} 44. Rxc5 {[%clk
00:17:25]} {[%emt 00:00:04]} Ra7 {[%clk 00:01:41]} {[%emt 00:00:12]} 45. a4
{[%clk 00:17:11]} {[%emt 00:00:44]} Rd2 {[%clk 00:29:35]} {[%emt 00:03:02]} 46.
Bc7 {[%clk 00:46:55]} {[%emt 00:00:21]} Ra2 {[%clk 00:29:41]} {[%emt 00:00:23]}
47. Bxa5 {[%clk 00:47:13]} {[%emt 00:00:30]} Rxa4 {[%clk 00:30:06]} 48. Rc8+
{[%clk 00:47:36]} Kh7 {[%clk 00:30:26]} {[%emt 00:00:10]} 49. Bb6 {[%clk
00:47:59]} {[%emt 00:00:07]} Rf7 {[%clk 00:29:15]} {[%emt 00:01:34]} 50. Be3
{[%clk 00:45:53]} {[%emt 00:02:37]} Rg4 {[%clk 00:28:44]} {[%emt 00:01:09]} 51.
Rc5 {[%clk 00:44:56]} {[%emt 00:01:19]} Kg6 {[%clk 00:26:40]} {[%emt 00:02:34]}
52. Ke2 {[%clk 00:44:28]} {[%emt 00:00:58]} Rh4 {[%clk 00:26:40]} {[%emt
00:00:30]} 53. Rc1 {[%clk 00:41:22]} {[%emt 00:03:37]} Rxh2 {[%clk 00:26:57]}
{[%emt 00:00:15]} 54. Rg1+ {[%clk 00:41:31]} {[%emt 00:00:20]} Kh7 {[%clk
00:27:17]} {[%emt 00:00:10]} 55. Rg4 {[%clk 00:40:25]} {[%emt 00:01:34]} Rh5
{[%clk 00:27:27]} {[%emt 00:00:22]} 56. Kf1 {[%clk 00:40:44]} {[%emt 00:00:11]}
Rhf5 {[%clk 00:27:36]} {[%emt 00:00:22]} 57. Kg2 {[%clk 00:41:06]} {[%emt
00:00:08]} g5 {[%clk 00:27:34]} {[%emt 00:00:40]} 58. Ra4 {[%clk 00:41:32]} h5
{[%clk 00:27:30]} {[%emt 00:00:26]} 59. Ra6 {[%clk 00:42:00]} {[%emt 00:00:36]}
g4 {[%clk 00:25:49]} {[%emt 00:01:38]} 60. Kg3 {[%clk 00:42:24]} {[%emt
00:00:31]} R7f6 {[%clk 00:24:13]} {[%emt 00:01:40]} 61. Ra7+ {[%clk 00:42:39]}
{[%emt 00:00:15]} Kg6 {[%clk 00:24:36]} {[%emt 00:00:08]} 62. Ra8 {[%clk
00:42:57]} {[%emt 00:00:33]} Rf3+ {[%clk 00:24:59]} 63. Kg2 {[%clk 00:43:24]}
Rf8 {[%clk 00:20:20]} {[%emt 00:04:59]} 64. Ra6+ {[%clk 00:43:35]} {[%emt
00:00:26]} R3f6 {[%clk 00:20:48]} 65. Ra5 {[%clk 00:44:02]} {[%emt 00:00:04]}
Rf5 {[%clk 00:20:33]} {[%emt 00:00:47]} 66. Ra6+ {[%clk 00:44:27]} R8f6 {[%clk
00:20:54]} {[%emt 00:00:04]} 67. Ra8 {[%clk 00:44:52]} {[%emt 00:00:06]} Re6
{[%clk 00:21:00]} {[%emt 00:00:23]} 68. Rg8+ {[%clk 00:45:04]} {[%emt
00:00:34]} Kh7 {[%clk 00:21:02]} {[%emt 00:00:13]} 69. Ra8 {[%clk 00:45:23]}
{[%emt 00:00:16]} h4 {[%clk 00:19:34]} {[%emt 00:01:52]} 70. Ra7+ {[%clk
00:45:36]} {[%emt 00:00:17]} Kg6 {[%clk 00:19:57]} {[%emt 00:00:20]} 71. Bd4
{[%clk 00:45:47]} {[%emt 00:00:11]} Rf7 {[%clk 00:20:06]} {[%emt 00:00:16]} 72.
Ra8 {[%clk 00:46:07]} {[%emt 00:00:13]} Re4 {[%clk 00:20:04]} {[%emt 00:00:31]}
73. Rg8+ {[%clk 00:46:15]} {[%emt 00:00:28]} Kf5 {[%clk 00:19:18]} {[%emt
00:01:08]} 74. Be3 {[%clk 00:46:27]} {[%emt 00:00:17]} Rh7 {[%clk 00:18:32]}
{[%emt 00:01:21]} 75. Rf8+ {[%clk 00:46:51]} {[%emt 00:00:11]} Kg6 {[%clk
00:18:38]} {[%emt 00:00:21]} 76. Rg8+ {[%clk 00:47:06]} {[%emt 00:00:09]} Kf7
{[%clk 00:18:23]} {[%emt 00:00:46]} 77. Ra8 {[%clk 00:47:31]} {[%emt 00:00:11]}
Rh5 {[%clk 00:13:40]} {[%emt 00:05:09]} 78. Ra7+ {[%clk 00:46:13]} {[%emt
00:01:45]} Kg6 {[%clk 00:13:29]} {[%emt 00:00:40]} 79. Ra6+ {[%clk 00:46:35]}
{[%emt 00:00:23]} Kf5 {[%clk 00:13:44]} {[%emt 00:00:24]} 80. Ra5+ {[%clk
00:46:55]} Re5 {[%clk 00:14:04]} {[%emt 00:00:04]} 81. Ra8 {[%clk 00:46:56]}
{[%emt 00:00:23]} h3+ {[%clk 00:13:19]} {[%emt 00:01:14]} 82. Kh1 {[%clk
00:46:57]} {[%emt 00:00:30]} g3 {[%clk 00:09:55]} {[%emt 00:04:02]} 83. Rf8+
{[%clk 00:46:07]} {[%emt 00:01:12]} Ke6 {[%clk 00:09:52]} {[%emt 00:00:42]} 84.
fxg3 {[%clk 00:45:03]} {[%emt 00:01:23]} Kd5 {[%clk 00:07:16]} {[%emt
00:03:32]} 85. Rd8+ {[%clk 00:42:26]} {[%emt 00:02:43]} Kc4 {[%clk 00:07:29]}
{[%emt 00:00:19]} 86. Bf2 {[%clk 00:41:17]} {[%emt 00:01:48]} Re2 {[%clk
00:04:58]} {[%emt 00:02:50]} 87. Rf8 {[%clk 00:40:15]} {[%emt 00:01:32]} Rd5
{[%clk 00:04:52]} {[%emt 00:00:36]} 88. Rf4+ {[%clk 00:39:18]} {[%emt
00:01:27]} Kb5 {[%clk 00:05:06]} {[%emt 00:00:22]} 89. Bd4 {[%clk 00:36:19]}
{[%emt 00:03:26]} Rd2 {[%clk 00:05:35]} {[%emt 00:00:03]} 90. Bg1 {[%clk
00:35:44]} {[%emt 00:01:01]} Rg2 {[%clk 00:05:18]} {[%emt 00:00:46]} 91. Bd4
{[%clk 00:35:08]} {[%emt 00:01:07]} Rxg3 {[%clk 00:04:39]} {[%emt 00:01:08]} 92.
Kh2 {[%clk 00:35:25]} {[%emt 00:00:13]} Rd3 {[%clk 00:04:48]} {[%emt 00:00:22]}
93. Bf6 {[%clk 00:34:22]} {[%emt 00:01:51]} Rc5 {[%clk 00:04:07]} {[%emt
00:00:50]} 94. Bh4 {[%clk 00:34:32]} {[%emt 00:00:20]} Rc2+ {[%clk 00:04:10]}
{[%emt 00:00:41]} 95. Rf2 {[%clk 00:33:08]} {[%emt 00:01:43]} Rxf2+ {[%clk
00:04:22]} {[%emt 00:00:15]} 96. Bxf2 {[%clk 00:33:37]} Rd2 {[%clk 00:04:44]}
{[%emt 00:00:11]} 97. Kg1 {[%clk 00:34:06]} {[%emt 00:00:03]} Kc4 {[%clk
00:04:10]} {[%emt 00:01:01]} 98. Be3 {[%clk 00:34:09]} {[%emt 00:00:26]} Rg2+
{[%clk 00:04:29]} {[%emt 00:00:29]} 99. Kh1 {[%clk 00:34:33]} {[%emt 00:00:08]}
Kd3 {[%clk 00:04:54]} 100. Bb6 {[%clk 00:34:54]} Ke4 {[%clk 00:05:14]} {[%emt
00:00:08]} 101. Bc7 {[%clk 00:35:15]} {[%emt 00:00:08]} Kf3 {[%clk 00:05:37]}
{[%emt 00:00:06]} 102. Bb6 {[%clk 00:34:55]} {[%emt 00:00:50]} Rc2 {[%clk
00:05:44]} {[%emt 00:00:23]} 103. Bd4 {[%clk 00:35:10]} {[%emt 00:00:14]} Kg4
{[%clk 00:05:49]} {[%emt 00:00:25]} 104. Be5 {[%clk 00:35:10]} {[%emt
00:00:40]} Rc1+ {[%clk 00:05:15]} {[%emt 00:00:56]} 105. Kh2 {[%clk 00:35:31]}
{[%emt 00:00:11]} Re1 {[%clk 00:05:42]} {[%emt 00:00:04]} 106. Bd6 {[%clk
00:35:35]} {[%emt 00:00:21]} Re2+ {[%clk 00:06:06]} {[%emt 00:00:27]} 107. Kh1
{[%clk 00:35:23]} {[%emt 00:00:21]} Kf3 {[%clk 00:06:28]} {[%emt 00:00:15]} 108.
Bc7 {[%clk 00:34:08]} {[%emt 00:01:38]} Re7 {[%clk 00:06:36]} {[%emt 00:00:35]}
109. Bd6 {[%clk 00:34:24]} {[%emt 00:00:05]} Rd7 {[%clk 00:06:52]} {[%emt
00:00:13]} 110. Be5 {[%clk 00:34:46]} {[%emt 00:00:07]} Rh7 {[%clk 00:06:48]}
{[%emt 00:00:34]} 111. Kh2 {[%clk 00:34:38]} {[%emt 00:00:39]} Kg4 {[%clk
00:07:09]} {[%emt 00:00:06]} 112. Bd6 {[%clk 00:34:39]} {[%emt 00:00:30]} Rb7
{[%clk 00:07:33]} {[%emt 00:00:45]} 113. Kh1 {[%clk 00:34:50]} {[%emt
00:00:10]} Rb1+ {[%clk 00:07:13]} {[%emt 00:00:23]} 114. Kh2 {[%clk 00:35:15]}
{[%emt 00:00:10]} Rb2+ {[%clk 00:07:38]} 115. Kh1 {[%clk 00:35:36]} {[%emt
00:00:15]} Rc2 {[%clk 00:08:03]} 116. Be5 {[%clk 00:35:49]} {[%emt 00:00:13]}
h2 {[%clk 00:08:25]} {[%emt 00:00:10]} 117. Bxh2 {[%clk 00:35:47]} {[%emt
00:00:29]} Kh3 {[%clk 00:08:50]} {[%emt 00:00:23]} 118. Bg1 {[%clk 00:35:41]}
{[%emt 00:00:19]} Kg3 {[%clk 00:09:13]} {[%emt 00:00:10]} 119. Ba7 {[%clk
00:34:00]} {[%emt 00:02:07]} Rb2 {[%clk 00:09:24]} {[%emt 00:00:19]} 120. Bc5
{[%clk 00:34:00]} {[%emt 00:00:31]} Rb5 {[%clk 00:09:41]} {[%emt 00:00:12]} 121.
Bd6+ {[%clk 00:34:10]} {[%emt 00:00:33]} Kh3 {[%clk 00:10:00]} 122. Kg1 {[%clk
00:33:56]} {[%emt 00:00:43]} Rb2 {[%clk 00:10:24]} {[%emt 00:00:11]} 123. Be5
{[%clk 00:34:13]} {[%emt 00:00:07]} Ra2 {[%clk 00:10:41]} {[%emt 00:00:16]} 124.
Bd6 {[%clk 00:34:14]} {[%emt 00:00:26]} Kg4 {[%clk 00:11:04]} {[%emt 00:00:38]}
125. Kf1 {[%clk 00:33:05]} {[%emt 00:01:19]} Kf3 {[%clk 00:11:26]} 126. Ke1
{[%clk 00:33:23]} {[%emt 00:00:12]} Re2+ {[%clk 00:11:50]} {[%emt 00:00:12]}
127. Kd1 {[%clk 00:33:25]} {[%emt 00:00:43]} Ke3 {[%clk 00:12:13]} 128. Kc1
{[%clk 00:33:21]} {[%emt 00:00:16]} Kd3 {[%clk 00:12:37]} {[%emt 00:00:39]} 129.
Bf8 {[%clk 00:33:33]} {[%emt 00:00:04]} Rc2+ {[%clk 00:12:44]} {[%emt
00:00:05]} 130. Kb1 {[%clk 00:33:35]} {[%emt 00:00:39]} Kc3 {[%clk 00:13:04]}
{[%emt 00:00:04]} 131. Bg7+ {[%clk 00:33:36]} {[%emt 00:00:23]} Kb3 {[%clk
00:13:26]} {[%emt 00:00:33]} 132. Bh6 {[%clk 00:32:36]} {[%emt 00:01:05]} Rh2
{[%clk 00:13:36]} {[%emt 00:00:25]} 133. Bc1 {[%clk 00:32:30]} {[%emt
00:00:30]} Rh1 {[%clk 00:14:00]} {[%emt 00:00:20]} 0-1

[Event "Chess Festival Groningen 2023 | A"]
[Site "Groningen, Netherlands"]
[Date "2023.12.24"]
[Round "4.29"]
[White "De Jong, Mathijs"]
[Black "Van Rootselaar, Rik"]
[Result "1/2-1/2"]
[TimeControl "90min/40moves + 30min + 30sec/move"]
[WhiteElo "2008"]
[BlackElo "2105"]

1. d4 {[%clk 01:30:56]} Nf6 {[%clk 01:30:43]} 2. c4 {[%clk 01:30:29]} {[%emt
00:00:46]} Nc6 {[%clk 01:30:05]} {[%emt 00:01:08]} 3. Nf3 {[%clk 01:29:17]}
{[%emt 00:01:42]} e6 {[%clk 01:29:12]} {[%emt 00:01:30]} 4. g3 {[%clk
01:24:15]} {[%emt 00:05:27]} Bb4+ {[%clk 01:27:14]} {[%emt 00:02:25]} 5. Bd2
{[%clk 01:24:09]} {[%emt 00:00:36]} Bxd2+ {[%clk 01:27:18]} {[%emt 00:00:31]} 6.
Nbxd2 {[%clk 01:24:14]} {[%emt 00:00:26]} O-O {[%clk 01:27:03]} {[%emt
00:00:39]} 7. Bg2 {[%clk 01:24:35]} {[%emt 00:00:34]} d6 {[%clk 01:26:38]}
{[%emt 00:00:31]} 8. e4 {[%clk 01:18:40]} {[%emt 00:06:24]} e5 {[%clk
01:26:26]} {[%emt 00:00:42]} 9. d5 {[%clk 01:18:49]} {[%emt 00:00:43]} Ne7
{[%clk 01:25:15]} {[%emt 00:01:21]} 10. c5 {[%clk 01:15:32]} {[%emt 00:03:47]}
Nd7 {[%clk 01:24:48]} {[%emt 00:00:56]} 11. cxd6 {[%clk 01:11:38]} {[%emt
00:04:48]} cxd6 {[%clk 01:25:04]} {[%emt 00:00:04]} 12. O-O {[%clk 01:10:48]}
{[%emt 00:01:09]} f5 {[%clk 01:25:09]} {[%emt 00:00:25]} 13. exf5 {[%clk
01:06:24]} {[%emt 00:04:54]} Nf6 {[%clk 01:22:20]} {[%emt 00:03:19]} 14. Nh4
{[%clk 00:58:16]} {[%emt 00:08:35]} Nxf5 {[%clk 01:22:01]} {[%emt 00:00:49]} 15.
Nxf5 {[%clk 00:58:41]} {[%emt 00:00:14]} Bxf5 {[%clk 01:22:22]} {[%emt
00:00:04]} 16. Qb3 {[%clk 00:58:16]} {[%emt 00:01:15]} Qd7 {[%clk 01:19:51]}
{[%emt 00:02:37]} 17. Nc4 {[%clk 00:49:41]} {[%emt 00:09:06]} Bh3 {[%clk
01:12:27]} {[%emt 00:07:52]} 18. f3 {[%clk 00:35:38]} {[%emt 00:14:33]} Bxg2
{[%clk 01:10:07]} {[%emt 00:02:52]} 19. Kxg2 {[%clk 00:36:04]} {[%emt
00:00:06]} Rac8 {[%clk 01:07:53]} {[%emt 00:02:59]} 20. Rac1 {[%clk 00:34:45]}
{[%emt 00:01:30]} b6 {[%clk 01:02:17]} {[%emt 00:06:09]} 21. Nd2 {[%clk
00:27:26]} {[%emt 00:07:57]} Rxc1 {[%clk 00:40:08]} {[%emt 00:22:27]} 22. Rxc1
{[%clk 00:27:39]} {[%emt 00:00:20]} Qf7 {[%clk 00:35:59]} {[%emt 00:04:39]} 23.
Rc6 {[%clk 00:24:34]} {[%emt 00:03:36]} Rd8 {[%clk 00:35:34]} {[%emt 00:01:08]}
24. Nc4 {[%clk 00:12:51]} {[%emt 00:11:59]} Qxd5 {[%clk 00:31:46]} {[%emt
00:04:16]} 25. Rxd6 {[%clk 00:12:36]} {[%emt 00:01:03]} Rxd6 {[%clk 00:31:22]}
{[%emt 00:00:38]} 26. Nxd6 {[%clk 00:13:01]} {[%emt 00:00:11]} Qxb3 {[%clk
00:31:29]} {[%emt 00:00:15]} 27. axb3 {[%clk 00:13:28]} {[%emt 00:00:11]} Nd7
{[%clk 00:28:51]} {[%emt 00:03:01]} 28. b4 {[%clk 00:12:52]} {[%emt 00:01:06]}
a6 {[%clk 00:28:32]} {[%emt 00:00:49]} 29. Ne8 {[%clk 00:09:48]} {[%emt
00:03:34]} Kf7 {[%clk 00:23:18]} {[%emt 00:05:44]} 30. Nc7 {[%clk 00:09:57]}
{[%emt 00:00:25]} Nb8 {[%clk 00:22:33]} {[%emt 00:01:10]} 31. Kf2 {[%clk
00:10:07]} {[%emt 00:00:19]} b5 {[%clk 00:21:40]} {[%emt 00:01:46]} 32. Ke3
{[%clk 00:09:06]} {[%emt 00:01:09]} Ke7 {[%clk 00:22:01]} {[%emt 00:00:35]} 33.
Ke4 {[%clk 00:02:42]} {[%emt 00:06:28]} Kd7 {[%clk 00:22:15]} {[%emt 00:00:18]}
34. Nd5 {[%clk 00:03:08]} {[%emt 00:00:06]} Nc6 {[%clk 00:19:52]} {[%emt
00:02:55]} 35. f4 {[%clk 00:03:32]} {[%emt 00:00:04]} exf4 {[%clk 00:19:14]}
{[%emt 00:01:03]} 36. gxf4 {[%clk 00:03:56]} {[%emt 00:00:18]} Kd6 {[%clk
00:19:14]} {[%emt 00:00:23]} 37. h4 {[%clk 00:03:21]} {[%emt 00:01:02]} g6
{[%clk 00:18:11]} {[%emt 00:01:46]} 38. Nf6 {[%clk 00:02:33]} {[%emt 00:01:06]}
h6 {[%clk 00:11:24]} {[%emt 00:07:20]} 39. Ng4 {[%clk 00:02:23]} {[%emt
00:00:35]} h5 {[%clk 00:06:33]} {[%emt 00:05:24]} 40. Ne5 {[%clk 00:02:04]}
{[%emt 00:00:54]} Ne7 {[%clk 00:05:06]} {[%emt 00:01:51]} 41. Nf7+ {[%clk
00:19:57]} {[%emt 00:12:45]} Ke6 {[%clk 00:30:54]} {[%emt 00:04:33]} 42. Ne5
{[%clk 00:16:44]} {[%emt 00:03:43]} Kd6 {[%clk 00:30:25]} {[%emt 00:01:00]} 43.
Nf7+ {[%clk 00:16:51]} {[%emt 00:00:33]} Kd7 {[%clk 00:30:30]} {[%emt
00:00:14]} 44. Ne5+ {[%clk 00:14:01]} {[%emt 00:03:52]} Ke6 {[%clk 00:30:34]}
45. Nxg6 {[%clk 00:12:43]} {[%emt 00:01:45]} Nc8 {[%clk 00:21:54]} {[%emt
00:09:07]} 46. f5+ {[%clk 00:07:12]} {[%emt 00:06:01]} Kf6 {[%clk 00:22:15]}
{[%emt 00:00:11]} 47. Nf4 {[%clk 00:07:23]} {[%emt 00:00:16]} Nd6+ {[%clk
00:22:29]} {[%emt 00:00:24]} 48. Kd5 {[%clk 00:07:42]} {[%emt 00:00:07]} Kxf5
{[%clk 00:21:55]} {[%emt 00:01:00]} 49. Nxh5 {[%clk 00:07:39]} {[%emt
00:00:59]} Nc4 {[%clk 00:21:03]} {[%emt 00:00:58]} 50. Ng3 {[%clk 00:05:49]}
{[%emt 00:02:18]} Kg6 {[%clk 00:17:47]} {[%emt 00:03:46]} 51. b3 {[%clk
00:05:21]} {[%emt 00:00:59]} Ne3+ {[%clk 00:14:11]} {[%emt 00:04:20]} 52. Kc5
{[%clk 00:03:19]} {[%emt 00:02:17]} Nc2 {[%clk 00:14:13]} {[%emt 00:00:27]} 53.
h5+ {[%clk 00:02:36]} {[%emt 00:01:30]} Kg5 {[%clk 00:12:44]} {[%emt 00:01:54]}
54. h6 {[%clk 00:02:33]} {[%emt 00:00:23]} Kxh6 {[%clk 00:13:11]} {[%emt
00:00:09]} 55. Nf5+ {[%clk 00:03:01]} {[%emt 00:00:03]} Kg5 {[%clk 00:12:29]}
{[%emt 00:01:05]} 56. Nd4 {[%clk 00:03:25]} {[%emt 00:00:38]} Na1 {[%clk
00:08:19]} {[%emt 00:04:08]} 57. Kb6 {[%clk 00:02:32]} {[%emt 00:01:26]} Kf4
{[%clk 00:08:40]} {[%emt 00:00:05]} 58. Kxa6 {[%clk 00:02:54]} {[%emt
00:00:41]} Ke3 {[%clk 00:08:58]} 59. Ne6 {[%clk 00:02:02]} {[%emt 00:01:02]}
Nxb3 {[%clk 00:09:05]} {[%emt 00:00:30]} 60. Kxb5 {[%clk 00:02:28]} Nd2 {[%clk
00:08:57]} {[%emt 00:00:35]} 61. Kc5 {[%clk 00:02:15]} {[%emt 00:00:44]} Ne4+
{[%clk 00:06:57]} {[%emt 00:02:29]} 62. Kc6 {[%clk 00:02:42]} {[%emt 00:00:40]}
Nc3 {[%clk 00:07:12]} {[%emt 00:00:04]} 63. Nc7 {[%clk 00:03:08]} Kd4 {[%clk
00:07:16]} {[%emt 00:00:06]} 64. Nb5+ {[%clk 00:03:31]} {[%emt 00:00:05]} Kc4
{[%clk 00:07:41]} {[%emt 00:00:11]} 65. Nxc3 {[%clk 00:03:51]} {[%emt
00:00:04]} Kxb4 {[%clk 00:08:07]} {[%emt 00:00:31]} 1/2-1/2